bitfinex-derivatives/quotes_SOLF0:USTF0_20250311
["timestamp","ask_amount","ask_price","bid_price","bid_amount"]
[1741673302840,8.1095,123.34,123.3,34.18]
[1741673303040,4.1012,123.38,123.3,42.2912]
[1741673303240,4.1012,123.38,123.33,0.0561115]
[1741673303241,0.05743464,123.35,123.33,0.0561115]
[1741673303640,8.16603464,123.35,123.33,0.0561115]
[1741673303843,0.05743464,123.35,123.33,0.0561115]
[1741673304056,8.1091,123.34,123.33,0.0561115]
[1741673304555,0.05743464,123.35,123.33,0.0561115]
[1741673306361,8.16603464,123.35,123.33,0.0561115]
[1741673306555,0.05743464,123.35,123.33,0.0561115]
[1741673307164,8.1091,123.34,123.33,0.0561115]
[1741673307855,0.05743464,123.35,123.33,0.0561115]
[1741673308061,8.16603464,123.35,123.33,0.0561115]
[1741673308356,0.05743464,123.35,123.33,0.0561115]
[1741673309260,0.05743464,123.35,123.33,8.1653115]
[1741673309452,0.05743464,123.35,123.33,34.2361115]
[1741673309854,0.05743464,123.35,123.34,8.1091]
[1741673310561,17.96,123.37,123.33,34.2361115]
[1741673311652,0.05951205,123.36,123.33,34.2361115]
[1741673315758,8.1089,123.35,123.33,0.0561115]
[1741673316059,0.05951205,123.36,123.33,0.0561115]
[1741673317460,0.05951205,123.36,123.34,8.1086]
[1741673317859,0.05951205,123.36,123.33,0.0561115]
[1741673319162,0.05951205,123.36,123.33,8.1656115]
[1741673319564,0.05951205,123.36,123.33,0.0561115]
[1741673320163,8.1089,123.35,123.33,0.0561115]
[1741673320960,0.05951205,123.36,123.33,0.0561115]
[1741673322267,0.05951205,123.36,123.33,8.1658115]
[1741673322464,0.05951205,123.36,123.33,0.0561115]
[1741673325476,8.1084,123.35,123.33,0.0561115]
[1741673325876,8.16751205,123.36,123.33,0.0561115]
[1741673326272,0.05951205,123.36,123.33,0.0561115]
[1741673326472,8.1086,123.35,123.33,0.0561115]
[1741673327377,0.05951205,123.36,123.33,0.0561115]
[1741673328270,4.14251205,123.36,123.33,0.0561115]
[1741673328471,8.1089,123.35,123.33,0.0561115]
[1741673328676,4.14251205,123.36,123.33,0.0561115]
[1741673329077,8.1085,123.35,123.33,0.0561115]
[1741673329874,12.25041205,123.36,123.33,0.0561115]
[1741673330278,4.14251205,123.36,123.33,0.0561115]
[1741673330470,12.25051205,123.36,123.33,0.0561115]
[1741673330667,4.14251205,123.36,123.33,0.0561115]
[1741673332176,8.1088,123.35,123.33,0.0561115]
[1741673332874,4.14251205,123.36,123.33,0.0561115]
[1741673333277,12.25061205,123.36,123.33,0.0561115]
[1741673333878,4.14251205,123.36,123.33,0.0561115]
[1741673335076,8.1091,123.34,123.33,0.0561115]
[1741673340490,8.1114,123.31,123.29,34.14]
[1741673340783,8.5574,123.35,123.29,34.14]
[1741673341486,0.05411835,123.33,123.31,0.05559751]
[1741673342390,8.1104,123.32,123.31,0.05559751]
[1741673342691,0.05411835,123.33,123.31,0.05559751]
[1741673343092,8.1104,123.32,123.31,0.05559751]
[1741673343483,0.05411835,123.33,123.31,0.05559751]
[1741673343681,8.16441835,123.33,123.31,0.05559751]
[1741673345391,0.05411835,123.33,123.31,8.16609751]
[1741673346590,0.05411835,123.33,123.31,0.05559751]
[1741673346789,8.16421835,123.33,123.31,0.05559751]
[1741673347089,0.05411835,123.33,123.31,0.05559751]
[1741673347690,0.05411835,123.33,123.31,8.16629751]
[1741673348095,0.05411835,123.33,123.31,42.30629751]
[1741673349194,28.47,123.37,123.31,47.44581849]
[1741673349394,28.47,123.37,123.34,13.25022098]
[1741673349588,28.47,123.37,123.35,34.14]
[1741673350394,28.5263164,123.37,123.35,34.19806156]
[1741673351298,20.2063164,123.37,123.35,34.19806156]
[1741673352599,20.14609641,123.37,123.36,13.25022098]
[1741673353190,20.14609641,123.37,123.36,21.35802098]
[1741673353898,8.1036,123.43,123.38,8.1061]
[1741673354094,8.1036,123.43,123.39,34.12]
[1741673355102,8.16547903,123.42,123.4,0.06107612]
[1741673355302,0.06167903,123.42,123.4,0.06107612]
[1741673356193,0.06167903,123.42,123.41,8.1045]
[1741673356595,267.48,123.46,123.4,13.3112971]
[1741673356800,12.1788,123.48,123.43,8.1031]
[1741673357000,12.1788,123.48,123.44,34.12]
[1741673357201,4.0788,123.48,123.44,42.2225]
[1741673357405,4.0788,123.48,123.44,34.12]
[1741673357604,4.2585,123.5,123.44,34.12]
[1741673357605,4.2585,123.5,123.44,47.37022098]
[1741673357801,0.0540315,123.47,123.45,0.05439115]
[1741673360103,8.1012,123.46,123.45,0.05439115]
[1741673361106,8.1028,123.44,123.4,8.1051]
[1741673361403,17.44612098,123.49,123.4,34.1]
[1741673361404,4.1502,123.46,123.4,34.1]
[1741673361600,4.1502,123.46,123.4,42.205]
[1741673361799,8.1027,123.44,123.4,42.205]
[1741673362303,0.06081829,123.43,123.41,0.05887973]
[1741673366103,8.16331829,123.43,123.41,0.05887973]
[1741673367998,0.06081829,123.43,123.41,0.05887973]
[1741673368910,8.16361829,123.43,123.41,0.05887973]
[1741673369613,0.06081829,123.43,123.41,0.05887973]
[1741673371312,0.06081829,123.43,123.42,8.103]
[1741673371712,0.06081829,123.43,123.41,0.05887973]
[1741673371910,0.06081829,123.43,123.41,8.16217973]
[1741673372712,0.06081829,123.43,123.42,8.103]
[1741673374216,1.829e-05,123.43,123.42,21.35322098]
[1741673374714,8.4424,123.49,123.46,8.0999]
[1741673375404,8.4424,123.49,123.45,34.08]
[1741673375609,8.4424,123.49,123.46,8.1]
[1741673375804,8.4424,123.49,123.46,8.15867932]
[1741673375805,0.06068481,123.48,123.46,8.15867932]
[1741673376410,0.06068481,123.48,123.46,0.05867932]
[1741673378416,0.06068481,123.48,123.46,8.15867932]
[1741673378619,0.06068481,123.48,123.46,0.05867932]
[1741673379018,0.06068481,123.48,123.47,8.0997]
[1741673382920,0.06068481,123.48,123.46,8.15877932]
[1741673385019,0.06068481,123.48,123.47,8.0997]
[1741673386317,8.481e-05,123.48,123.47,8.0997]
[1741673390338,275.3327,123.58,123.53,8.0958]
[1741673390526,271.5299,123.58,123.52,34.04]
[1741673390823,271.5299,123.58,123.53,34.04]
[1741673391426,0.05175271,123.57,123.54,0.05584806]
[1741673391725,8.14535271,123.57,123.54,0.05584806]
[1741673391926,0.05175271,123.57,123.53,34.04]
[1741673392127,4.0328,123.56,123.5,34.02]
[1741673392731,8.0949,123.55,123.5,34.02]
[1741673393027,4.0328,123.56,123.51,0.05775849]
[1741673393231,0.05573908,123.54,123.51,0.05775849]
[1741673394327,8.15133908,123.54,123.51,0.05775849]
[1741673394527,0.05573908,123.54,123.47,34.02]
[1741673394726,0.05573908,123.54,123.45,13.25022098]
[1741673395031,8.0976,123.51,123.47,8.0997]
[1741673395734,0.05803397,123.5,123.48,0.06066215]
[1741673396433,8.15603397,123.5,123.48,0.06066215]
[1741673396633,0.05803397,123.5,123.48,0.06066215]
[1741673396934,8.0984,123.49,123.48,0.06066215]
[1741673397634,8.0998,123.47,123.43,55.37232098]
[1741673397834,8.0998,123.47,123.43,8.1021]
[1741673398234,12.3961,123.48,123.44,8.1017]
[1741673398632,4.2968,123.48,123.42,34.02]
[1741673398828,0.05841892,123.47,123.45,0.056343]
[1741673399533,0.05841892,123.47,123.41,13.25022098]
[1741673399730,0.05841892,123.47,123.41,47.27022098]
[1741673400537,0.05841892,123.47,123.4,8.1042]
[1741673400538,8.1021,123.44,123.4,8.1042]
[1741673400739,8.1021,123.44,123.43,0.05291881]
[1741673401238,0.05642985,123.45,123.39,34.02]
[1741673401633,8.1024,123.43,123.39,42.1247]
[1741673401937,47.27022098,123.48,123.39,34.02]
[1741673402134,8.1,123.47,123.39,34.02]
[1741673402334,0.05285889,123.45,123.42,0.0589419]
[1741673402733,0.05285889,123.45,123.42,42.1814419]
[1741673402933,0.05285889,123.45,123.42,34.0789419]
[1741673403238,0.05285889,123.45,123.42,0.0589419]
[1741673403438,8.1022,123.44,123.42,0.0589419]
[1741673403640,0.05285889,123.45,123.42,0.0589419]
[1741673404541,0.05285889,123.45,123.42,34.0789419]
[1741673405739,0.05285889,123.45,123.42,42.1817419]
[1741673405938,0.05285889,123.45,123.42,34.0789419]
[1741673406442,0.05285889,123.45,123.42,0.0589419]
[1741673408243,0.05285889,123.45,123.39,34.02]
[1741673408444,0.05285889,123.45,123.37,13.25022098]
[1741673408445,0.05285889,123.45,123.38,34.02]
[1741673408742,34.02,123.46,123.38,34.02]
[1741673408743,34.02,123.46,123.38,42.1254]
[1741673408944,34.02,123.46,123.38,34.02]
[1741673409333,8.102,123.44,123.38,34.02]
[1741673409537,0.05196016,123.43,123.41,0.05196862]
[1741673410145,0.05196016,123.43,123.41,8.15536862]
[1741673410339,0.05196016,123.43,123.41,0.05196862]
[1741673413241,8.103,123.42,123.41,0.05196862]
[1741673413542,0.05196016,123.43,123.41,0.05196862]
[1741673413736,8.15466016,123.43,123.41,0.05196862]
[1741673414136,0.05196016,123.43,123.41,0.05196862]
[1741673415247,0.05196016,123.43,123.42,8.103]
[1741673416749,0.05196016,123.43,123.41,55.4256896]
[1741673417049,0.05196016,123.43,123.41,34.07196862]
[1741673419445,0.05196016,123.43,123.42,8.103]
[1741673419747,0.05196016,123.43,123.41,34.07196862]
[1741673419946,0.05196016,123.43,123.42,8.103]
[1741673420544,0.05196016,123.43,123.41,47.3221896]
[1741673420545,23.79,123.45,123.44,8.1017]
[1741673420738,23.79,123.45,123.44,42.1017]
[1741673421139,3.98,123.52,123.44,34.0]
[1741673421342,7.9088,123.52,123.47,8.0993]
[1741673421745,267.23263151,123.5,123.47,8.15315786]
[1741673422149,0.05263151,123.5,123.47,42.15315786]
[1741673422744,0.05263151,123.5,123.47,0.05385786]
[1741673422964,8.0991,123.48,123.42,34.0]
[1741673423250,8.0991,123.48,123.43,42.102]
[1741673423552,8.0988,123.49,123.43,34.0]
[1741673423754,4.3012,123.5,123.43,34.0]
[1741673424046,0.06025287,123.48,123.45,0.05891049]
[1741673424250,8.0998,123.47,123.45,0.05891049]
[1741673424647,0.06025287,123.48,123.45,0.05891049]
[1741673425348,8.15965287,123.48,123.45,0.05891049]
[1741673425546,0.06025287,123.48,123.45,0.05891049]
[1741673426147,0.06025287,123.48,123.46,42.0998]
[1741673426752,0.06025287,123.48,123.46,34.0]
[1741673427355,0.06025287,123.48,123.46,42.0999]
[1741673427749,0.06025287,123.48,123.46,34.0]
[1741673427950,0.06025287,123.48,123.47,8.0997]
[1741673428855,3.949,123.54,123.51,8.0969]
[1741673429051,3.949,123.54,123.5,33.98]
[1741673429451,3.949,123.54,123.5,42.0774]
[1741673429653,275.4462,123.56,123.5,33.98]
[1741673429961,0.05784735,123.54,123.52,8.14748189]
[1741673430257,0.05784735,123.54,123.52,0.05148189]
[1741673430452,8.0958,123.53,123.52,0.05148189]
[1741673430648,37.929,123.53,123.44,33.98]
[1741673430849,37.929,123.53,123.43,13.25022098]
[1741673431047,37.929,123.53,123.45,13.25022098]
[1741673431755,0.05356564,123.5,123.48,0.05508173]
[1741673433959,0.05356564,123.5,123.49,8.0984]
[1741673434755,0.05356564,123.5,123.48,0.05508173]
[1741673436455,0.05356564,123.5,123.49,8.0984]
[1741673444361,6.564e-05,123.5,123.49,21.34862098]
[1741673446865,8.1662,123.56,123.49,13.25022098]
[1741673447070,8.1662,123.56,123.51,13.25022098]
[1741673447771,8.1662,123.56,123.54,8.0945]
[1741673448164,8.21899799,123.56,123.54,8.14586941]
[1741673448859,8.21899799,123.56,123.54,0.05136941]
[1741673450460,8.21899799,123.56,123.52,8.0964]
[1741673450461,8.21899799,123.56,123.43,191.0]
[1741673450667,33.94,123.55,123.45,13.25022098]
[1741673450864,13.25022098,123.54,123.46,8.1001]
[1741673451064,13.25022098,123.54,123.44,88.0606176]
[1741673451572,13.25022098,123.54,123.45,8.1008]
[1741673451773,8.15641649,123.5,123.48,0.05670347]
[1741673454375,0.05801649,123.5,123.48,0.05670347]
[1741673454676,8.0984,123.49,123.48,0.05670347]
[1741673455779,12.3146,123.49,123.48,0.05670347]
[1741673456475,38.1562,123.49,123.41,13.25022098]
[1741673456677,38.1562,123.49,123.41,47.19022098]
[1741673457175,8.1008,123.46,123.42,8.1026]
[1741673457571,0.06216666,123.45,123.43,0.05813012]
[1741673457878,8.16326666,123.45,123.43,0.05813012]
[1741673458267,0.06216666,123.45,123.43,0.05813012]
[1741673458776,8.16326666,123.45,123.43,0.05813012]
[1741673458974,0.06216666,123.45,123.43,0.05813012]
[1741673461474,0.06216666,123.45,123.37,238.19022098]
[1741673461673,4.2225,123.45,123.37,47.19022098]
[1741673461880,4.2225,123.45,123.37,33.94]
[1741673462075,8.1042,123.41,123.37,8.1059]
[1741673462378,3.9732,123.44,123.36,33.94]
[1741673462580,0.05668884,123.4,123.38,0.05399778]
[1741673462785,0.05668884,123.4,123.38,8.15919778]
[1741673463177,0.05668884,123.4,123.39,8.105]
[1741673463479,0.05668884,123.4,123.39,42.045]
[1741673464074,4.2225,123.45,123.39,47.19022098]
[1741673464280,3.9681,123.49,123.43,13.25022098]
[1741673464582,8.1602,123.49,123.44,33.94]
[1741673464775,8.1602,123.49,123.46,8.1]
[1741673465179,8.21713911,123.49,123.46,8.16150415]
[1741673465576,8.21713911,123.49,123.46,0.06150415]
[1741673466075,8.21713911,123.49,123.44,33.94]
[1741673466471,8.1002,123.47,123.42,8.1025]
[1741673466677,4.0321,123.48,123.42,8.1025]
[1741673467182,0.057991,123.46,123.44,0.05169414]
[1741673467379,0.057991,123.46,123.39,8.1048]
[1741673467579,47.24821198,123.46,123.36,33.94]
[1741673467784,47.19022098,123.46,123.36,33.94]
[1741673467985,8.1038,123.41,123.37,8.106]
[1741673468182,47.19022098,123.46,123.36,47.19022098]
[1741673468485,0.05500695,123.42,123.4,0.05496537]
[1741673468691,4.0479,123.44,123.39,33.94]
[1741673468880,0.0549829,123.42,123.4,0.0541011]
[1741673469075,0.0549829,123.42,123.41,8.1037]
[1741673471086,0.0549829,123.42,123.4,0.0541011]
[1741673472986,0.0549829,123.42,123.4,8.1580011]
[1741673473387,0.0549829,123.42,123.4,0.0541011]
[1741673473589,0.0549829,123.42,123.41,8.1037]
[1741673473982,8.29e-05,123.42,123.41,8.1037]
[1741673478490,4.0374,123.49,123.42,13.25022098]
[1741673478689,4.0374,123.49,123.43,33.94]
[1741673479483,0.05754612,123.47,123.45,0.0541604]
[1741673481493,0.05754612,123.47,123.45,8.1550604]
[1741673482295,0.05754612,123.47,123.45,0.0541604]
[1741673484394,0.05754612,123.47,123.46,33.92]
[1741673484595,0.05754612,123.47,123.46,42.0204]
[1741673485099,0.05754612,123.47,123.46,33.92]
[1741673485297,0.05754612,123.47,123.45,0.0541604]
[1741673487694,8.15734612,123.47,123.45,0.0541604]
[1741673489501,0.05754612,123.47,123.45,0.0541604]
[1741673490800,8.15764612,123.47,123.45,0.0541604]
[1741673493301,0.05754612,123.47,123.45,0.0541604]
[1741673493502,0.05754612,123.47,123.46,33.92]
[1741673494296,0.05754612,123.47,123.46,42.0204]
[1741673495204,0.05754612,123.47,123.46,33.92]
[1741673498007,0.05754612,123.47,123.46,42.0204]
[1741673499004,0.05754612,123.47,123.46,33.92]
[1741673499508,0.05754612,123.47,123.46,42.0204]
[1741673499700,0.05754612,123.47,123.46,33.92]
[1741673501109,0.05754612,123.47,123.46,42.0204]
[1741673501310,0.05754612,123.47,123.46,33.92]
[1741673505315,0.05754612,123.47,123.45,0.0541604]
[1741673506320,0.05754612,123.47,123.45,8.1551604]
[1741673506622,0.05754612,123.47,123.45,0.0541604]
[1741673507015,8.15754612,123.47,123.45,0.0541604]
[1741673509225,0.05754612,123.47,123.45,0.0541604]
[1741673510526,8.1004,123.46,123.45,0.0541604]
[1741673510916,8.1013,123.45,123.41,8.1031]
[1741673511123,47.15022098,123.48,123.42,33.9]
[1741673511626,8.1015,123.45,123.42,33.9]
[1741673512128,8.1023,123.44,123.42,0.05902479]
[1741673512326,8.1589,123.44,123.39,33.88]
[1741673513222,8.1032,123.42,123.39,33.88]
[1741673513430,8.1032,123.42,123.4,0.05268157]
[1741673514727,8.1037,123.41,123.4,0.05268157]
[1741673515529,0.06146548,123.43,123.4,0.05268157]
[1741673515731,8.1032,123.42,123.4,0.05268157]
[1741673517827,0.06146548,123.43,123.4,0.05268157]
[1741673518731,280.55022098,123.42,123.34,168.75186845]
[1741673518921,8.1063,123.37,123.33,130.0493176]
[1741673519321,13.25022098,123.4,123.33,88.0606176]
[1741673519535,8.3156,123.39,123.33,88.0606176]
[1741673519833,8.1071,123.36,123.35,0.05746082]
[1741673520132,0.0615575,123.37,123.33,88.0606176]
[1741673520522,8.1083,123.34,123.33,6.22017546]
[1741673520724,13.25022098,123.36,123.32,125.57672641]
[1741673520924,13.25022098,123.34,123.32,106.03412641]
[1741673521130,8.1089,123.33,123.32,54.95312641]
[1741673521329,275.4089,123.33,123.32,55.01218863]
[1741673521529,277.8489,123.33,123.32,55.01218863]
[1741673521831,277.8489,123.33,123.32,42.49898863]
[1741673522026,275.4089,123.33,123.32,42.49898863]
[1741673523130,267.3,123.33,123.32,42.49898863]
[1741673523534,267.3,123.33,123.32,0.05906222]
[1741673523727,275.4089,123.33,123.32,0.05906222]
[1741673524129,267.3,123.33,123.32,0.05906222]
[1741673526732,0.0554427,123.35,123.32,0.05906222]
[1741673527238,0.0554427,123.35,123.33,8.1089]
[1741673527839,0.0554427,123.35,123.34,8.1083]
[1741673528041,0.0554427,123.35,123.32,0.05906222]
[1741673528337,0.0554427,123.35,123.32,8.16846222]
[1741673528540,0.0554427,123.35,123.32,0.05906222]
[1741673530040,8.1632427,123.35,123.32,0.05906222]
[1741673531543,0.0554427,123.35,123.32,8.16826222]
[1741673532042,0.0554427,123.35,123.32,0.05906222]
[1741673532343,8.1632427,123.35,123.32,0.05906222]
[1741673532542,0.0554427,123.35,123.32,0.05906222]
[1741673532741,8.1089,123.33,123.32,0.05906222]
[1741673533735,10.5489,123.33,123.32,6.222e-05]
[1741673534341,8.1089,123.33,123.32,6.222e-05]
[1741673535637,0.0554427,123.35,123.32,6.222e-05]
[1741673536740,267.42,123.38,123.33,33.88]
[1741673537047,44.81458542,123.44,123.37,13.25022098]
[1741673537345,8.1035,123.42,123.38,38.2212]
[1741673537745,13.25022098,123.46,123.38,38.2212]
[1741673537941,0.0513612,123.41,123.39,0.06218029]
[1741673538244,47.13022098,123.46,123.39,0.06218029]
[1741673538441,0.06116871,123.41,123.39,0.06218029]
[1741673538642,47.13022098,123.46,123.39,0.06218029]
[1741673538842,0.05686257,123.41,123.39,0.06218029]
[1741673539047,8.1031,123.42,123.39,0.06218029]
[1741673539251,0.05505078,123.41,123.39,0.06218029]
[1741673542651,8.15915078,123.41,123.39,0.06218029]
[1741673543652,8.1043,123.4,123.39,0.06218029]
[1741673543949,0.05505078,123.41,123.39,0.06218029]
[1741673544149,8.15885078,123.41,123.39,0.06218029]
[1741673544849,0.05505078,123.41,123.39,0.06218029]
[1741673545351,288.67892237,123.48,123.39,0.06218029]
[1741673545352,322.55892237,123.48,123.39,4.18518029]
[1741673545551,301.38,123.48,123.39,4.123]
[1741673545852,322.55892237,123.48,123.39,4.123]
[1741673546441,0.06161262,123.45,123.42,0.0539174]
[1741673546646,8.1024,123.43,123.42,0.0539174]
[1741673552659,0.06161262,123.45,123.42,8.1564174]
[1741673552864,267.38,123.49,123.42,0.0539174]
[1741673553155,275.4786,123.49,123.44,8.1016]
[1741673553357,275.4786,123.49,123.45,42.1623]
[1741673553753,267.38,123.49,123.45,42.1623]
[1741673553954,289.41,123.49,123.45,42.1623]
[1741673554153,0.05563704,123.48,123.46,0.05721205]
[1741673554358,8.0997,123.47,123.46,0.05721205]
[1741673555255,8.0997,123.47,123.46,1.205e-05]
[1741673555653,41.9397,123.47,123.46,1.205e-05]
[1741673555960,8.1037,123.41,123.4,3.9202]
[1741673557559,0.05619119,123.42,123.4,3.9202]
[1741673557762,310.58892237,123.49,123.4,3.9202]
[1741673558060,289.41,123.49,123.4,25.09912237]
[1741673558952,0.05575125,123.46,123.43,0.05816995]
[1741673559158,0.05575125,123.46,123.44,33.84]
[1741673559351,0.05575125,123.46,123.44,38.111]
[1741673561954,0.05575125,123.46,123.44,46.2127]
[1741673562159,0.05575125,123.46,123.45,3.9159]
[1741673565860,289.41,123.49,123.45,3.9159]
[1741673566258,280.52469756,123.55,123.45,3.9159]
[1741673566655,8.0968,123.52,123.45,3.9159]
[1741673567264,0.05847711,123.5,123.47,0.05702577]
[1741673567467,0.05847711,123.5,123.48,33.82]
[1741673567664,0.05847711,123.5,123.48,41.9189]
[1741673567861,0.05847711,123.5,123.48,33.82]
[1741673568860,0.05847711,123.5,123.48,41.9189]
[1741673569065,0.05847711,123.5,123.48,33.82]
[1741673570468,267.3,123.55,123.48,33.82]
[1741673570863,267.3,123.55,123.49,12.0944]
[1741673571462,8.0961,123.53,123.49,12.0944]
[1741673571662,8.15252831,123.53,123.51,0.05617765]
[1741673571963,0.05642831,123.53,123.51,0.05617765]
[1741673572166,8.0965,123.52,123.51,0.05617765]
[1741673572766,8.0994,123.48,123.46,3.996]
[1741673573964,8.15657043,123.48,123.46,4.0555279]
[1741673574367,0.05717043,123.48,123.46,12.1558279]
[1741673574970,33.82,123.53,123.49,8.0983]
[1741673575271,8.0966,123.52,123.48,33.8]
[1741673575465,267.3,123.55,123.48,33.8]
[1741673575861,52.90588542,123.6,123.49,4.1502]
[1741673576070,44.81458542,123.6,123.5,0.05118339]
[1741673576259,44.81458542,123.6,123.51,33.8]
[1741673576464,44.81458542,123.59,123.52,4.0028]
[1741673577064,8.093,123.58,123.52,4.0028]
[1741673577364,0.0607997,123.57,123.54,0.05650582]
[1741673577564,8.1543997,123.57,123.54,0.05650582]
[1741673577773,0.0607997,123.57,123.54,0.05650582]
[1741673581267,0.0607997,123.57,123.55,8.094]
[1741673581460,0.0607997,123.57,123.54,33.85650582]
[1741673582370,0.0607997,123.57,123.56,8.0938]
[1741673582968,300.98,123.62,123.56,8.0938]
[1741673583371,300.98,123.62,123.55,12.293]
[1741673583668,8.092,123.59,123.55,4.1987]
[1741673583874,322.12667128,123.62,123.54,41.8949]
[1741673584276,8.14980604,123.59,123.57,0.05783464]
[1741673584677,0.05750604,123.59,123.57,0.05783464]
[1741673584873,8.0929,123.58,123.54,33.8]
[1741673585376,8.14940604,123.59,123.54,33.8]
[1741673585774,0.05750604,123.59,123.54,41.8949]
[1741673585980,0.05750604,123.59,123.55,0.06076266]
[1741673585981,8.14980604,123.59,123.55,0.06076266]
[1741673586373,0.05750604,123.59,123.55,0.06076266]
[1741673586573,8.0932,123.57,123.55,0.06076266]
[1741673587879,8.0927,123.58,123.55,0.06076266]
[1741673588978,33.83750604,123.59,123.55,0.06076266]
[1741673590181,8.0933,123.57,123.55,0.06076266]
[1741673591582,8.0938,123.56,123.55,0.06076266]
[1741673591779,33.83750604,123.59,123.55,0.06076266]
[1741673593590,0.05750604,123.59,123.55,0.06076266]
[1741673594585,0.05750604,123.59,123.55,8.15486266]
[1741673594790,0.05750604,123.59,123.55,0.06076266]
[1741673595791,8.0927,123.58,123.55,0.06076266]
[1741673596089,0.05750604,123.59,123.56,8.0935]
[1741673596288,8.14950604,123.59,123.55,0.06076266]
[1741673596587,8.14950604,123.59,123.55,8.15496266]
[1741673597085,0.05750604,123.59,123.55,0.06076266]
[1741673597391,0.05750604,123.59,123.58,8.0925]
[1741673597686,0.05750604,123.59,123.55,8.22876266]
[1741673597889,0.05750604,123.59,123.58,8.0925]
[1741673598383,8.0882,123.65,123.6,8.0907]
[1741673598582,91.94168717,123.67,123.6,41.8507]
[1741673599386,0.05603411,123.65,123.62,0.05497556]
[1741673600785,13.20440175,123.63,123.55,8.168]
[1741673601986,0.05710786,123.6,123.58,0.05247634]
[1741673602387,8.0919,123.59,123.58,0.05247634]
[1741673603083,8.0919,123.59,123.54,33.74]
[1741673603683,8.0919,123.59,123.54,41.8347]
[1741673603988,8.0919,123.59,123.55,0.0574896]
[1741673604990,0.05710786,123.6,123.55,0.0574896]
[1741673605184,8.0927,123.58,123.55,0.0574896]
[1741673606184,8.0923,123.59,123.55,8.1518896]
[1741673606981,8.0926,123.58,123.55,8.1518896]
[1741673607387,8.0926,123.58,123.55,0.0574896]
[1741673609692,8.0926,123.58,123.55,8.1518896]
[1741673611594,8.0926,123.58,123.55,0.0574896]
[1741673611992,0.05710786,123.6,123.57,13.20440175]
[1741673612297,267.0,123.62,123.58,33.74]
[1741673612498,267.0,123.62,123.58,37.9138]
[1741673612691,267.0,123.62,123.59,8.0915]
[1741673613093,267.0,123.62,123.58,37.9138]
[1741673613497,0.06063198,123.61,123.59,0.05757365]
[1741673617100,0.06063198,123.61,123.59,8.14917365]
[1741673618402,0.06063198,123.61,123.6,8.0912]
[1741673618595,8.0888,123.64,123.6,8.0912]
[1741673618796,8.0888,123.64,123.61,33.72]
[1741673619403,8.0896,123.63,123.61,33.72]
[1741673619801,0.05117999,123.63,123.61,33.77538596]
[1741673620001,8.14067999,123.63,123.61,33.77538596]
[1741673621001,0.05117999,123.63,123.61,33.77538596]
[1741673626406,0.05117999,123.63,123.61,41.86588596]
[1741673627201,0.05117999,123.63,123.61,33.77538596]
[1741673629314,0.05117999,123.63,123.61,41.86578596]
[1741673629511,0.05117999,123.63,123.61,33.77538596]
[1741673630509,0.05117999,123.63,123.61,41.86578596]
[1741673631407,266.96,123.68,123.61,33.77538596]
[1741673631604,275.0463,123.68,123.61,46.97978771]
[1741673631803,266.96,123.68,123.62,4.3349]
[1741673632109,266.96,123.68,123.61,33.72]
[1741673632508,8.0878,123.66,123.61,41.8102]
[1741673632707,8.14331925,123.66,123.63,0.05446805]
[1741673633508,0.05551925,123.66,123.63,0.05446805]
[1741673634711,0.05551925,123.66,123.63,8.14336805]
[1741673635509,8.14291925,123.66,123.63,0.05446805]
[1741673636206,8.14291925,123.66,123.63,8.14366805]
[1741673636509,8.14291925,123.66,123.63,0.05446805]
[1741673637413,8.0884,123.65,123.63,0.05446805]
[1741673638013,0.05551925,123.66,123.63,0.05446805]
[1741673638513,8.14331925,123.66,123.63,0.05446805]
[1741673638704,0.05551925,123.66,123.63,0.05446805]
[1741673639110,0.05551925,123.66,123.63,8.14326805]
[1741673639805,8.14291925,123.66,123.63,8.14326805]
[1741673641213,0.05551925,123.66,123.64,8.0882]
[1741673641408,0.05551925,123.66,123.64,46.27818165]
[1741673641614,8.43788165,123.73,123.66,8.43788165]
[1741673641816,16.52088165,123.73,123.67,33.68]
[1741673642706,0.06069426,123.71,123.69,0.05722284]
[1741673642920,0.06069426,123.71,123.69,8.14242284]
[1741673643321,0.06069426,123.71,123.69,0.05722284]
[1741673643710,0.06069426,123.71,123.7,33.66]
[1741673643916,0.06069426,123.71,123.7,41.7447]
[1741673644113,311.67458542,123.74,123.7,42.09788165]